[Event "Titled Tuesday Blitz June 1 2021"]
[White "Sychev, Klementy"]
[Black "LikeWater"]
[WhiteFideId "4114060"]
[WhiteElo "2615"]
[BlackElo "2672"]
[Result "1-0"]
[Round "03"]
[TimeControl "180+1"]
[Date "2021.06.01"]
[WhiteClock "0:02:09"]
[BlackClock "0:02:06"]

1. e4 {[%clk 0:03:00]}  c5 {[%clk 0:02:59]} 2. g3 {[%clk 0:03:00]}  e6 {[%clk 0:02:52]} 3. Bg2 {[%clk 0:02:59]}  Nc6 {[%clk 0:02:53]} 4. Ne2 {[%clk 0:02:50]}  Nf6 {[%clk 0:02:49]} 5. Nbc3 {[%clk 0:02:48]}  d6 {[%clk 0:02:46]} 6. d4 {[%clk 0:02:47]}  cxd4 {[%clk 0:02:47]} 7. Nxd4 {[%clk 0:02:42]}  Bd7 {[%clk 0:02:47]} 8. Ndb5 {[%clk 0:02:39]}  Qb8 {[%clk 0:02:47]} 9. a4 {[%clk 0:02:38]}  Be7 {[%clk 0:02:41]} 10. O-O {[%clk 0:02:37]}  O-O {[%clk 0:02:41]} 11. Be3 {[%clk 0:02:34]}  Ne5 {[%clk 0:02:39]} 12. Qe2 {[%clk 0:02:32]}  a6 {[%clk 0:02:23]} 13. Na3 {[%clk 0:02:31]}  Nfg4 {[%clk 0:02:15]} 14. Bd2 {[%clk 0:02:11]}  Rc8 {[%clk 0:02:06]} 15. f4 {[%clk 0:02:09]} 1-0


[Site "https://www.chess.com"]

[Event "Titled Tuesday Blitz June 1 2021"]
[White "Timofeev, Artyom"]
[Black "Sieciechowicz, Marcin"]
[WhiteFideId "4140419"]
[BlackFideId "1130170"]
[WhiteElo "2582"]
[BlackElo "2288"]
[Result "1-0"]
[Round "03"]
[TimeControl "180+1"]
[Date "2021.06.01"]
[WhiteClock "0:00:40"]
[BlackClock "0:00:05"]

1. c4 {[%clk 0:03:00]}  Nf6 {[%clk 0:02:46]} 2. Nc3 {[%clk 0:02:58]}  g6 {[%clk 0:02:43]} 3. g3 {[%clk 0:02:57]}  Bg7 {[%clk 0:02:42]} 4. Bg2 {[%clk 0:02:58]}  O-O {[%clk 0:02:42]} 5. d3 {[%clk 0:02:58]}  d6 {[%clk 0:02:38]} 6. Nf3 {[%clk 0:02:57]}  e5 {[%clk 0:02:38]} 7. O-O {[%clk 0:02:57]}  c6 {[%clk 0:02:39]} 8. e4 {[%clk 0:02:54]}  Na6 {[%clk 0:02:37]} 9. h3 {[%clk 0:02:53]}  Nc7 {[%clk 0:02:36]} 10. Be3 {[%clk 0:02:52]}  Ne6 {[%clk 0:02:36]} 11. d4 {[%clk 0:02:44]}  Nd7 {[%clk 0:02:20]} 12. d5 {[%clk 0:02:39]}  cxd5 {[%clk 0:02:20]} 13. cxd5 {[%clk 0:02:38]}  Nec5 {[%clk 0:02:19]} 14. b4 {[%clk 0:02:35]}  Na6 {[%clk 0:02:16]} 15. a3 {[%clk 0:02:35]}  Nb6 {[%clk 0:02:12]} 16. Qe2 {[%clk 0:02:22]}  Bd7 {[%clk 0:02:11]} 17. Rfc1 {[%clk 0:02:19]}  Rc8 {[%clk 0:01:58]} 18. Nb5 {[%clk 0:02:06]}  Bxb5 {[%clk 0:01:54]} 19. Qxb5 {[%clk 0:02:06]}  Qe8 {[%clk 0:01:44]} 20. Bf1 {[%clk 0:02:00]}  Qxb5 {[%clk 0:01:40]} 21. Bxb5 {[%clk 0:01:59]}  Rxc1+ {[%clk 0:01:37]} 22. Rxc1 {[%clk 0:01:58]}  Rc8 {[%clk 0:01:37]} 23. Rxc8+ {[%clk 0:01:49]}  Nxc8 {[%clk 0:01:38]} 24. Bxa6 {[%clk 0:01:47]}  bxa6 {[%clk 0:01:38]} 25. Nd2 {[%clk 0:01:48]}  Bf6 {[%clk 0:01:29]} 26. Nc4 {[%clk 0:01:43]}  Bd8 {[%clk 0:01:29]} 27. Kf1 {[%clk 0:01:36]}  Kf8 {[%clk 0:01:28]} 28. Ke2 {[%clk 0:01:36]}  Ke8 {[%clk 0:01:28]} 29. f4 {[%clk 0:01:36]}  f6 {[%clk 0:01:26]} 30. Kd3 {[%clk 0:01:34]}  Kd7 {[%clk 0:01:26]} 31. h4 {[%clk 0:01:27]}  Bb6 {[%clk 0:01:17]} 32. f5 {[%clk 0:01:21]}  Ke7 {[%clk 0:01:04]} 33. fxg6 {[%clk 0:01:20]}  hxg6 {[%clk 0:01:05]} 34. g4 {[%clk 0:01:20]}  Kf7 {[%clk 0:01:02]} 35. a4 {[%clk 0:01:14]}  Ke7 {[%clk 0:00:58]} 36. a5 {[%clk 0:01:11]}  Bc7 {[%clk 0:00:50]} 37. Ke2 {[%clk 0:01:08]}  Kf7 {[%clk 0:00:48]} 38. Kf3 {[%clk 0:01:09]}  Bb8 {[%clk 0:00:45]} 39. h5 {[%clk 0:01:01]}  Kg7 {[%clk 0:00:41]} 40. Bd2 {[%clk 0:00:58]}  Ne7 {[%clk 0:00:38]} 41. Ne3 {[%clk 0:00:58]}  Kf7 {[%clk 0:00:29]} 42. hxg6+ {[%clk 0:00:57]}  Kxg6 {[%clk 0:00:27]} 43. Nf5 {[%clk 0:00:57]}  Nxf5 {[%clk 0:00:20]} 44. exf5+ {[%clk 0:00:57]}  Kf7 {[%clk 0:00:19]} 45. Be3 {[%clk 0:00:56]}  Kg7 {[%clk 0:00:18]} 46. Kg3 {[%clk 0:00:56]}  Kf7 {[%clk 0:00:17]} 47. Kh4 {[%clk 0:00:56]}  Kg7 {[%clk 0:00:17]} 48. Kh5 {[%clk 0:00:56]}  Kh7 {[%clk 0:00:14]} 49. Kh4 {[%clk 0:00:44]}  Kg7 {[%clk 0:00:14]} 50. Kg3 {[%clk 0:00:45]}  Kf7 {[%clk 0:00:14]} 51. Kf3 {[%clk 0:00:45]}  Kg7 {[%clk 0:00:14]} 52. Ke4 {[%clk 0:00:45]}  Kf7 {[%clk 0:00:14]} 53. Kd3 {[%clk 0:00:45]}  Ke7 {[%clk 0:00:14]} 54. Kc4 {[%clk 0:00:46]}  Kd7 {[%clk 0:00:13]} 55. b5 {[%clk 0:00:45]}  Kc7 {[%clk 0:00:09]} 56. bxa6 {[%clk 0:00:42]}  Kd7 {[%clk 0:00:09]} 57. Kb5 {[%clk 0:00:42]}  Kc7 {[%clk 0:00:08]} 58. Bh6 {[%clk 0:00:41]}  Kd7 {[%clk 0:00:08]} 59. Bd2 {[%clk 0:00:40]}  Kc7 {[%clk 0:00:08]} 60. g5 {[%clk 0:00:40]}  fxg5 {[%clk 0:00:07]} 61. Bxg5 {[%clk 0:00:40]}  Kd7 {[%clk 0:00:08]} 62. f6 {[%clk 0:00:41]}  Ke8 {[%clk 0:00:06]} 63. Kc6 {[%clk 0:00:40]}  Kf7 {[%clk 0:00:05]} 64. Kb7 {[%clk 0:00:40]} 1-0


[Site "https://www.chess.com"]

[Event "Titled Tuesday Blitz June 1 2021"]
[White "Tristan, Leonardo"]
[Black "Li, Eric"]
[WhiteFideId "113816"]
[BlackFideId "30939941"]
[WhiteElo "2404"]
[BlackElo "1869"]
[Result "1-0"]
[Round "03"]
[TimeControl "180+1"]
[Date "2021.06.01"]
[WhiteClock "0:01:10"]
[BlackClock "0:01:59"]

1. d4 {[%clk 0:03:00]}  d5 {[%clk 0:02:58]} 2. Bf4 {[%clk 0:03:00]}  Nf6 {[%clk 0:02:58]} 3. e3 {[%clk 0:03:01]}  c5 {[%clk 0:02:58]} 4. Nf3 {[%clk 0:03:01]}  cxd4 {[%clk 0:02:57]} 5. exd4 {[%clk 0:03:01]}  a6 {[%clk 0:02:57]} 6. Bd3 {[%clk 0:02:58]}  Nc6 {[%clk 0:02:57]} 7. c3 {[%clk 0:02:58]}  Bg4 {[%clk 0:02:57]} 8. Nbd2 {[%clk 0:02:58]}  e6 {[%clk 0:02:57]} 9. a4 {[%clk 0:02:55]}  Bd6 {[%clk 0:02:56]} 10. Bxd6 {[%clk 0:02:52]}  Qxd6 {[%clk 0:02:57]} 11. O-O {[%clk 0:02:52]}  O-O {[%clk 0:02:57]} 12. Re1 {[%clk 0:02:52]}  e5 {[%clk 0:02:55]} 13. dxe5 {[%clk 0:02:48]}  Nxe5 {[%clk 0:02:52]} 14. Rxe5 {[%clk 0:02:47]}  Qxe5 {[%clk 0:02:51]} 15. Nxe5 {[%clk 0:02:47]}  Bxd1 {[%clk 0:02:49]} 16. Rxd1 {[%clk 0:02:47]}  Rfe8 {[%clk 0:02:49]} 17. Ndf3 {[%clk 0:02:34]}  g6 {[%clk 0:02:44]} 18. h3 {[%clk 0:02:26]}  Kg7 {[%clk 0:02:43]} 19. Ng4 {[%clk 0:02:20]}  Nxg4 {[%clk 0:02:36]} 20. hxg4 {[%clk 0:02:21]}  h6 {[%clk 0:02:33]} 21. Nd4 {[%clk 0:02:21]}  Rad8 {[%clk 0:02:30]} 22. f3 {[%clk 0:02:20]}  Kf6 {[%clk 0:02:28]} 23. Kf2 {[%clk 0:02:20]}  Re7 {[%clk 0:02:26]} 24. a5 {[%clk 0:02:20]}  Ke5 {[%clk 0:02:25]} 25. Nb3 {[%clk 0:02:02]}  Kd6 {[%clk 0:02:23]} 26. Bc4 {[%clk 0:01:50]}  Kc6 {[%clk 0:02:21]} 27. Nd4+ {[%clk 0:01:50]}  Kc7 {[%clk 0:02:20]} 28. Bf1 {[%clk 0:01:43]}  Kd6 {[%clk 0:02:19]} 29. c4 {[%clk 0:01:40]}  Kc5 {[%clk 0:02:10]} 30. Nc2 {[%clk 0:01:36]}  Red7 {[%clk 0:02:07]} 31. b4+ {[%clk 0:01:36]}  Kc6 {[%clk 0:02:07]} 32. Nd4+ {[%clk 0:01:23]}  Kc7 {[%clk 0:02:07]} 33. c5 {[%clk 0:01:24]}  Re7 {[%clk 0:02:02]} 34. Rc1 {[%clk 0:01:24]}  Kb8 {[%clk 0:01:59]} 35. Bxa6 {[%clk 0:01:10]} 1-0


[Site "https://www.chess.com"]

[Event "Titled Tuesday Blitz June 1 2021"]
[White "Willow, Jonah B"]
[Black "Zhukov, Maksim"]
[WhiteFideId "438804"]
[BlackFideId "34181790"]
[WhiteElo "2261"]
[BlackElo "1992"]
[Result "1-0"]
[Round "03"]
[TimeControl "180+1"]
[Date "2021.06.01"]
[WhiteClock "0:01:24"]
[BlackClock "0:00:40"]

1. e4 {[%clk 0:03:00]}  d5 {[%clk 0:02:59]} 2. Nc3 {[%clk 0:02:58]}  dxe4 {[%clk 0:02:59]} 3. Nxe4 {[%clk 0:02:59]}  Nd7 {[%clk 0:02:59]} 4. Nf3 {[%clk 0:02:57]}  e6 {[%clk 0:02:59]} 5. d4 {[%clk 0:02:57]}  Ngf6 {[%clk 0:03:00]} 6. Bd3 {[%clk 0:02:57]}  Be7 {[%clk 0:03:00]} 7. c3 {[%clk 0:02:56]}  O-O {[%clk 0:03:00]} 8. O-O {[%clk 0:02:55]}  b6 {[%clk 0:03:00]} 9. Re1 {[%clk 0:02:52]}  Bb7 {[%clk 0:03:00]} 10. Bf4 {[%clk 0:02:52]}  Nxe4 {[%clk 0:03:00]} 11. Bxe4 {[%clk 0:02:52]}  Bxe4 {[%clk 0:03:00]} 12. Rxe4 {[%clk 0:02:53]}  Nf6 {[%clk 0:03:00]} 13. Re2 {[%clk 0:02:53]}  Nd5 {[%clk 0:02:58]} 14. Bg3 {[%clk 0:02:53]}  Bd6 {[%clk 0:02:55]} 15. Qc2 {[%clk 0:02:51]}  Bxg3 {[%clk 0:02:55]} 16. hxg3 {[%clk 0:02:51]}  g6 {[%clk 0:02:53]} 17. Rae1 {[%clk 0:02:51]}  a5 {[%clk 0:02:49]} 18. Ne5 {[%clk 0:02:51]}  a4 {[%clk 0:02:44]} 19. Qd3 {[%clk 0:02:20]}  Qg5 {[%clk 0:02:36]} 20. Qf3 {[%clk 0:02:18]}  Kg7 {[%clk 0:02:27]} 21. c4 {[%clk 0:02:14]}  Nf6 {[%clk 0:02:16]} 22. Qc6 {[%clk 0:02:09]}  Rad8 {[%clk 0:01:50]} 23. Qxc7 {[%clk 0:01:56]}  Rxd4 {[%clk 0:01:48]} 24. Nf3 {[%clk 0:01:54]}  Qc5 {[%clk 0:01:25]} 25. Qxc5 {[%clk 0:01:46]}  bxc5 {[%clk 0:01:26]} 26. Nxd4 {[%clk 0:01:47]}  cxd4 {[%clk 0:01:27]} 27. Rd2 {[%clk 0:01:44]}  Rd8 {[%clk 0:01:26]} 28. f4 {[%clk 0:01:44]}  Ng4 {[%clk 0:01:10]} 29. Re4 {[%clk 0:01:40]}  f5 {[%clk 0:00:56]} 30. Rexd4 {[%clk 0:01:39]}  Rb8 {[%clk 0:00:56]} 31. c5 {[%clk 0:01:36]}  e5 {[%clk 0:00:55]} 32. Rd7+ {[%clk 0:01:26]}  Kh6 {[%clk 0:00:55]} 33. c6 {[%clk 0:01:26]}  e4 {[%clk 0:00:51]} 34. c7 {[%clk 0:01:27]}  Rc8 {[%clk 0:00:51]} 35. Re7 {[%clk 0:01:26]}  e3 {[%clk 0:00:40]} 36. Rd8 {[%clk 0:01:24]}  Rxc7 {[%clk 0:00:38]} 37. Rxc7 {[%clk 0:01:24]}  e2 {[%clk 0:00:39]} 38. Re7 {[%clk 0:01:24]}  Ne3 {[%clk 0:00:39]} 39. Rxe3 {[%clk 0:01:24]}  e1=Q+ {[%clk 0:00:40]} 1-0


[Site "https://www.chess.com"]

[Event "Titled Tuesday Blitz June 1 2021"]
[White "Blohberger, Felix"]
[Black "Grieve, Harry"]
[WhiteFideId "1632051"]
[BlackFideId "426520"]
[WhiteElo "2434"]
[BlackElo "2191"]
[Result "1-0"]
[Round "04"]
[TimeControl "180+1"]
[Date "2021.06.01"]
[WhiteClock "0:00:09"]
[BlackClock "0:00:20"]

1. d4 {[%clk 0:02:55]}  f5 {[%clk 0:02:57]} 2. Nf3 {[%clk 0:02:52]}  Nf6 {[%clk 0:02:58]} 3. Bf4 {[%clk 0:02:52]}  e6 {[%clk 0:02:57]} 4. e3 {[%clk 0:02:49]}  b6 {[%clk 0:02:57]} 5. Be2 {[%clk 0:02:48]}  Bb7 {[%clk 0:02:57]} 6. O-O {[%clk 0:02:48]}  Be7 {[%clk 0:02:57]} 7. c4 {[%clk 0:02:49]}  O-O {[%clk 0:02:57]} 8. h3 {[%clk 0:02:49]}  Ne4 {[%clk 0:02:57]} 9. Nbd2 {[%clk 0:02:46]}  Bf6 {[%clk 0:02:55]} 10. Nxe4 {[%clk 0:02:41]}  fxe4 {[%clk 0:02:56]} 11. Nd2 {[%clk 0:02:19]}  Bxd4 {[%clk 0:02:56]} 12. Qc2 {[%clk 0:02:18]}  Qh4 {[%clk 0:02:03]} 13. Bg3 {[%clk 0:02:11]}  Qg5 {[%clk 0:01:51]} 14. exd4 {[%clk 0:02:03]}  e3 {[%clk 0:01:52]} 15. Nf3 {[%clk 0:01:35]}  exf2+ {[%clk 0:01:36]} 16. Kxf2 {[%clk 0:01:28]}  Nc6 {[%clk 0:01:34]} 17. Qe4 {[%clk 0:01:04]}  Rf7 {[%clk 0:01:08]} 18. Qe3 {[%clk 0:00:51]}  Qa5 {[%clk 0:01:02]} 19. Kg1 {[%clk 0:00:49]}  Raf8 {[%clk 0:01:00]} 20. Bxc7 {[%clk 0:00:45]}  Nb4 {[%clk 0:00:42]} 21. Qe5 {[%clk 0:00:30]}  d5 {[%clk 0:00:34]} 22. Bd6 {[%clk 0:00:13]}  Re8 {[%clk 0:00:28]} 23. Bxb4 {[%clk 0:00:12]}  Qxb4 {[%clk 0:00:28]} 24. cxd5 {[%clk 0:00:12]}  Bxd5 {[%clk 0:00:27]} 25. Ng5 {[%clk 0:00:12]}  Rxf1+ {[%clk 0:00:20]} 26. Rxf1 {[%clk 0:00:13]}  Qxb2 {[%clk 0:00:20]} 27. Rf7 {[%clk 0:00:09]} 1-0


[Site "https://www.chess.com"]

[Event "Titled Tuesday Blitz June 1 2021"]
[White "Degenbaev, Aziz"]
[Black "tapu2"]
[WhiteFideId "13802640"]
[WhiteElo "1932"]
[BlackElo "2638"]
[Result "0-1"]
[Round "04"]
[TimeControl "180+1"]
[Date "2021.06.01"]
[WhiteClock "0:00:16"]
[BlackClock "0:01:34"]

1. c4 {[%clk 0:03:00]}  c5 {[%clk 0:02:59]} 2. Nf3 {[%clk 0:03:00]}  g6 {[%clk 0:02:59]} 3. d4 {[%clk 0:03:01]}  cxd4 {[%clk 0:02:59]} 4. Nxd4 {[%clk 0:03:02]}  Nc6 {[%clk 0:03:00]} 5. e4 {[%clk 0:03:01]}  Nf6 {[%clk 0:03:00]} 6. Nc3 {[%clk 0:03:00]}  d6 {[%clk 0:03:01]} 7. Be2 {[%clk 0:03:00]}  Nxd4 {[%clk 0:03:01]} 8. Qxd4 {[%clk 0:02:59]}  Bg7 {[%clk 0:03:02]} 9. Be3 {[%clk 0:02:56]}  O-O {[%clk 0:03:02]} 10. O-O {[%clk 0:02:55]}  Ng4 {[%clk 0:03:01]} 11. Qd3 {[%clk 0:02:53]}  Nxe3 {[%clk 0:03:01]} 12. Qxe3 {[%clk 0:02:54]}  Be6 {[%clk 0:02:51]} 13. Rac1 {[%clk 0:02:53]}  Rc8 {[%clk 0:02:51]} 14. b3 {[%clk 0:02:52]}  Qa5 {[%clk 0:02:50]} 15. Rc2 {[%clk 0:02:49]}  a6 {[%clk 0:02:48]} 16. Rfc1 {[%clk 0:02:45]}  Qc5 {[%clk 0:02:44]} 17. Qxc5 {[%clk 0:02:35]}  dxc5 {[%clk 0:02:40]} 18. Nd5 {[%clk 0:02:35]}  Bxd5 {[%clk 0:02:40]} 19. cxd5 {[%clk 0:02:30]}  Bd4 {[%clk 0:02:30]} 20. b4 {[%clk 0:02:28]}  b6 {[%clk 0:02:31]} 21. bxc5 {[%clk 0:02:06]}  bxc5 {[%clk 0:02:24]} 22. Bxa6 {[%clk 0:02:06]}  Ra8 {[%clk 0:02:24]} 23. Bc4 {[%clk 0:02:04]}  Kg7 {[%clk 0:02:23]} 24. g3 {[%clk 0:02:02]}  f5 {[%clk 0:02:23]} 25. exf5 {[%clk 0:01:58]}  Rxf5 {[%clk 0:02:23]} 26. Kg2 {[%clk 0:01:58]}  Raf8 {[%clk 0:02:06]} 27. Rf1 {[%clk 0:01:53]}  Rf3 {[%clk 0:02:05]} 28. Bb3 {[%clk 0:01:49]}  g5 {[%clk 0:02:01]} 29. Re2 {[%clk 0:01:49]}  Kh8 {[%clk 0:01:48]} 30. Rxe7 {[%clk 0:01:42]}  Rxf2+ {[%clk 0:01:48]} 31. Rxf2 {[%clk 0:01:42]}  Rxf2+ {[%clk 0:01:49]} 32. Kh1 {[%clk 0:01:19]}  Rf1+ {[%clk 0:01:49]} 33. Kg2 {[%clk 0:01:19]}  Rf2+ {[%clk 0:01:49]} 34. Kh3 {[%clk 0:00:45]}  h5 {[%clk 0:01:45]} 35. Re4 {[%clk 0:00:35]}  g4+ {[%clk 0:01:34]} 36. Kh4 {[%clk 0:00:35]}  Rf5 {[%clk 0:01:34]} 37. Re6 {[%clk 0:00:24]}  Kg7 {[%clk 0:01:33]} 38. d6 {[%clk 0:00:19]}  Bf6+ {[%clk 0:01:33]} 39. Rxf6 {[%clk 0:00:19]}  Rxf6 {[%clk 0:01:34]} 40. Kxh5 {[%clk 0:00:17]}  Rxd6 {[%clk 0:01:34]} 41. Kxg4 {[%clk 0:00:18]}  c4 {[%clk 0:01:35]} 42. Ba4 {[%clk 0:00:16]}  Ra6 {[%clk 0:01:34]} 43. Bb5 {[%clk 0:00:16]}  Rxa2 {[%clk 0:01:32]} 44. h4 {[%clk 0:00:16]}  c3 {[%clk 0:01:32]} 45. Bd3 {[%clk 0:00:16]}  c2 {[%clk 0:01:31]} 46. Bxc2 {[%clk 0:00:15]}  Rxc2 {[%clk 0:01:32]} 47. h5 {[%clk 0:00:15]}  Kh6 {[%clk 0:01:33]} 48. Kh4 {[%clk 0:00:15]}  Rh2+ {[%clk 0:01:33]} 49. Kg4 {[%clk 0:00:15]}  Rxh5 {[%clk 0:01:34]} 50. Kf4 {[%clk 0:00:15]}  Rg5 {[%clk 0:01:34]} 51. g4 {[%clk 0:00:16]} 0-1


[Site "https://www.chess.com"]

[Event "Titled Tuesday Blitz June 1 2021"]
[White "Devaev, Alexander"]
[Black "Rustemov, Alexander"]
[WhiteFideId "4169395"]
[BlackFideId "4119002"]
[WhiteElo "2185"]
[BlackElo "2670"]
[Result "1-0"]
[Round "04"]
[TimeControl "180+1"]
[Date "2021.06.01"]
[WhiteClock "0:00:26"]
[BlackClock "0:00:21"]

1. d4 {[%clk 0:02:56]}  d5 {[%clk 0:02:58]} 2. c4 {[%clk 0:02:56]}  c6 {[%clk 0:02:57]} 3. Nf3 {[%clk 0:02:56]}  Nf6 {[%clk 0:02:56]} 4. cxd5 {[%clk 0:02:56]}  cxd5 {[%clk 0:02:56]} 5. Nc3 {[%clk 0:02:57]}  Nc6 {[%clk 0:02:52]} 6. Bf4 {[%clk 0:02:58]}  a6 {[%clk 0:02:51]} 7. h3 {[%clk 0:02:57]}  Bf5 {[%clk 0:02:49]} 8. e3 {[%clk 0:02:57]}  Rc8 {[%clk 0:02:45]} 9. Nh4 {[%clk 0:02:56]}  Bd7 {[%clk 0:02:42]} 10. Bd3 {[%clk 0:02:52]}  Qb6 {[%clk 0:02:31]} 11. Rb1 {[%clk 0:02:40]}  Nb4 {[%clk 0:02:30]} 12. O-O {[%clk 0:02:35]}  Nxd3 {[%clk 0:02:29]} 13. Qxd3 {[%clk 0:02:35]}  e6 {[%clk 0:02:29]} 14. Nf3 {[%clk 0:02:33]}  Be7 {[%clk 0:02:28]} 15. Bg5 {[%clk 0:02:31]}  h6 {[%clk 0:02:26]} 16. Bh4 {[%clk 0:02:31]}  O-O {[%clk 0:02:09]} 17. Ne5 {[%clk 0:02:30]}  Rfd8 {[%clk 0:02:03]} 18. Nxd7 {[%clk 0:02:17]}  Rxd7 {[%clk 0:02:01]} 19. Bxf6 {[%clk 0:02:17]}  Bxf6 {[%clk 0:02:00]} 20. Rfc1 {[%clk 0:02:18]}  Rdc7 {[%clk 0:01:56]} 21. Ne2 {[%clk 0:02:11]}  Rxc1+ {[%clk 0:01:50]} 22. Nxc1 {[%clk 0:02:11]}  Qc6 {[%clk 0:01:41]} 23. Ne2 {[%clk 0:02:09]}  Qc2 {[%clk 0:01:40]} 24. Qxc2 {[%clk 0:02:03]}  Rxc2 {[%clk 0:01:40]} 25. Kf1 {[%clk 0:02:04]}  e5 {[%clk 0:01:39]} 26. Ke1 {[%clk 0:01:54]}  exd4 {[%clk 0:01:39]} 27. exd4 {[%clk 0:01:54]}  Bg5 {[%clk 0:01:33]} 28. a4 {[%clk 0:01:40]}  Rc4 {[%clk 0:01:22]} 29. b3 {[%clk 0:01:39]}  Rc2 {[%clk 0:01:21]} 30. f4 {[%clk 0:01:08]}  Bh4+ {[%clk 0:01:20]} 31. Kd1 {[%clk 0:01:07]}  Ra2 {[%clk 0:01:17]} 32. Rc1 {[%clk 0:01:02]}  Rb2 {[%clk 0:01:08]} 33. Rc8+ {[%clk 0:00:53]}  Kh7 {[%clk 0:01:08]} 34. Rc3 {[%clk 0:00:50]}  a5 {[%clk 0:01:03]} 35. g3 {[%clk 0:00:50]}  Bf6 {[%clk 0:01:02]} 36. Rd3 {[%clk 0:00:45]}  Kg6 {[%clk 0:00:58]} 37. g4 {[%clk 0:00:44]}  Bh4 {[%clk 0:00:45]} 38. Rf3 {[%clk 0:00:34]}  Kf6 {[%clk 0:00:41]} 39. Nc3 {[%clk 0:00:34]}  Ke6 {[%clk 0:00:38]} 40. Re3+ {[%clk 0:00:32]}  Kd7 {[%clk 0:00:36]} 41. Nxd5 {[%clk 0:00:32]}  Kc6 {[%clk 0:00:30]} 42. Ne7+ {[%clk 0:00:32]}  Kd7 {[%clk 0:00:26]} 43. Nf5 {[%clk 0:00:31]}  Bf6 {[%clk 0:00:25]} 44. Rd3 {[%clk 0:00:28]}  b6 {[%clk 0:00:19]} 45. h4 {[%clk 0:00:27]}  g6 {[%clk 0:00:18]} 46. Nxh6 {[%clk 0:00:27]}  Ke7 {[%clk 0:00:17]} 47. g5 {[%clk 0:00:27]}  Bg7 {[%clk 0:00:17]} 48. f5 {[%clk 0:00:27]}  Bxh6 {[%clk 0:00:12]} 49. gxh6 {[%clk 0:00:27]}  Rh2 {[%clk 0:00:13]} 50. fxg6 {[%clk 0:00:25]}  fxg6 {[%clk 0:00:14]} 51. Rg3 {[%clk 0:00:25]}  Kf6 {[%clk 0:00:12]} 52. h7 {[%clk 0:00:25]}  Rxh4 {[%clk 0:00:12]} 53. Kc2 {[%clk 0:00:19]}  Rxh7 {[%clk 0:00:12]} 54. Kc3 {[%clk 0:00:20]}  g5 {[%clk 0:00:13]} 55. Kc4 {[%clk 0:00:20]}  Kf5 {[%clk 0:00:13]} 56. d5 {[%clk 0:00:16]}  Rh6 {[%clk 0:00:13]} 57. Rg1 {[%clk 0:00:15]}  g4 {[%clk 0:00:13]} 58. Rf1+ {[%clk 0:00:15]}  Kg5 {[%clk 0:00:13]} 59. Kd4 {[%clk 0:00:14]}  Rg6 {[%clk 0:00:12]} 60. Ke5 {[%clk 0:00:15]}  g3 {[%clk 0:00:12]} 61. d6 {[%clk 0:00:15]}  Kh4 {[%clk 0:00:12]} 62. Rg1 {[%clk 0:00:16]}  Rg8 {[%clk 0:00:12]} 63. d7 {[%clk 0:00:16]}  Kg4 {[%clk 0:00:11]} 64. Ke6 {[%clk 0:00:16]}  Kf3 {[%clk 0:00:11]} 65. Ke7 {[%clk 0:00:17]}  Kf2 {[%clk 0:00:12]} 66. Rb1 {[%clk 0:00:17]}  Rg7+ {[%clk 0:00:11]} 67. Ke6 {[%clk 0:00:17]}  Rg8 {[%clk 0:00:12]} 68. Ke7 {[%clk 0:00:16]}  Rg7+ {[%clk 0:00:12]} 69. Kd6 {[%clk 0:00:17]}  Rg8 {[%clk 0:00:12]} 70. Kc7 {[%clk 0:00:17]}  g2 {[%clk 0:00:12]} 71. d8=Q {[%clk 0:00:17]}  Rxd8 {[%clk 0:00:12]} 72. Kxd8 {[%clk 0:00:17]}  g1=Q {[%clk 0:00:13]} 73. Rxg1 {[%clk 0:00:18]}  Kxg1 {[%clk 0:00:13]} 74. Kc7 {[%clk 0:00:18]}  Kf2 {[%clk 0:00:14]} 75. Kxb6 {[%clk 0:00:19]}  Ke3 {[%clk 0:00:15]} 76. Kxa5 {[%clk 0:00:20]}  Kd4 {[%clk 0:00:16]} 77. b4 {[%clk 0:00:21]}  Kd5 {[%clk 0:00:17]} 78. Kb6 {[%clk 0:00:21]}  Kd6 {[%clk 0:00:17]} 79. b5 {[%clk 0:00:22]}  Kd7 {[%clk 0:00:18]} 80. Kb7 {[%clk 0:00:22]}  Kd6 {[%clk 0:00:18]} 81. b6 {[%clk 0:00:23]}  Kc5 {[%clk 0:00:19]} 82. a5 {[%clk 0:00:23]}  Kb5 {[%clk 0:00:19]} 83. a6 {[%clk 0:00:24]}  Ka5 {[%clk 0:00:20]} 84. a7 {[%clk 0:00:25]}  Kb5 {[%clk 0:00:21]} 85. a8=Q {[%clk 0:00:26]} 1-0


[Site "https://www.chess.com"]

[Event "Titled Tuesday Blitz June 1 2021"]
[White "Hryshchenko, Kamila"]
[Black "Dowgird, Filip"]
[WhiteFideId "14147491"]
[BlackFideId "1121235"]
[WhiteElo "1956"]
[BlackElo "2209"]
[Result "0-1"]
[Round "04"]
[TimeControl "180+1"]
[Date "2021.06.01"]
[WhiteClock "0:00:02"]
[BlackClock "0:00:13"]

1. e4 {[%clk 0:03:00]}  d6 {[%clk 0:02:56]} 2. d4 {[%clk 0:02:59]}  Nf6 {[%clk 0:02:55]} 3. Nc3 {[%clk 0:02:58]}  c6 {[%clk 0:02:56]} 4. f4 {[%clk 0:02:58]}  Qa5 {[%clk 0:02:54]} 5. e5 {[%clk 0:02:56]}  Ne4 {[%clk 0:02:54]} 6. Qf3 {[%clk 0:02:54]}  f5 {[%clk 0:02:53]} 7. exf6 {[%clk 0:02:47]}  Nxf6 {[%clk 0:02:52]} 8. Bd3 {[%clk 0:02:40]}  Na6 {[%clk 0:02:52]} 9. Ne2 {[%clk 0:02:39]}  Nb4 {[%clk 0:02:51]} 10. Bd2 {[%clk 0:02:33]}  Nxd3+ {[%clk 0:02:50]} 11. Qxd3 {[%clk 0:02:34]}  Bf5 {[%clk 0:02:50]} 12. Qf3 {[%clk 0:02:23]}  Bxc2 {[%clk 0:02:46]} 13. O-O {[%clk 0:02:20]}  Qh5 {[%clk 0:02:41]} 14. Qg3 {[%clk 0:02:01]}  Bf5 {[%clk 0:02:33]} 15. b4 {[%clk 0:01:57]}  a6 {[%clk 0:02:19]} 16. d5 {[%clk 0:01:47]}  Qg6 {[%clk 0:02:09]} 17. dxc6 {[%clk 0:01:34]}  bxc6 {[%clk 0:02:06]} 18. Qf2 {[%clk 0:01:20]}  e6 {[%clk 0:01:39]} 19. Qb6 {[%clk 0:01:11]}  Rc8 {[%clk 0:01:27]} 20. Nd4 {[%clk 0:01:06]}  Kd7 {[%clk 0:01:25]} 21. Rac1 {[%clk 0:00:48]}  Ne4 {[%clk 0:01:19]} 22. Na4 {[%clk 0:00:28]}  c5 {[%clk 0:00:29]} 23. bxc5 {[%clk 0:00:22]}  Nxc5 {[%clk 0:00:27]} 24. Qa7+ {[%clk 0:00:19]}  Ke8 {[%clk 0:00:23]} 25. Nb6 {[%clk 0:00:18]}  Rd8 {[%clk 0:00:21]} 26. Rxc5 {[%clk 0:00:17]}  dxc5 {[%clk 0:00:20]} 27. Nc6 {[%clk 0:00:17]}  Be4 {[%clk 0:00:18]} 28. Rf2 {[%clk 0:00:08]}  Bxc6 {[%clk 0:00:18]} 29. Qxa6 {[%clk 0:00:07]}  Qb1+ {[%clk 0:00:18]} 30. Rf1 {[%clk 0:00:07]}  Qe4 {[%clk 0:00:17]} 31. Rf2 {[%clk 0:00:05]}  Be7 {[%clk 0:00:16]} 32. Nc8 {[%clk 0:00:04]}  Kf7 {[%clk 0:00:14]} 33. Nxe7 {[%clk 0:00:03]}  Kxe7 {[%clk 0:00:15]} 34. Qa7+ {[%clk 0:00:03]}  Rd7 {[%clk 0:00:15]} 35. Qxc5+ {[%clk 0:00:03]}  Kf7 {[%clk 0:00:16]} 36. f5 {[%clk 0:00:02]}  exf5 {[%clk 0:00:16]} 37. Rxf5+ {[%clk 0:00:02]}  Ke6 {[%clk 0:00:13]} 0-1


[Site "https://www.chess.com"]